fUST/lending_fUST_20241111
["ID","MTS","AMOUNT","RATE_DAILY","PERIOD"]
[341901624,1731277841496,-503.00806518,0.00024657,2]
[341901625,1731277841509,-1420.63,0.00024657,2]
[341901626,1731277841520,-500.0,0.00024657,2]
[341901627,1731277841530,-531.3,0.00024657,2]
[341901628,1731277841540,-1345.79,0.00024657,2]
[341901629,1731277841554,-1303.58,0.00024657,2]
[341901630,1731277841564,-500.0,0.00024657,2]
[341901631,1731277841574,-500.0,0.00024657,2]
[341901632,1731277841584,-439.41311178,0.00024657,2]
[341901633,1731277841594,-1603.27,0.00024657,2]
[341901634,1731277841603,-500.0,0.00024657,2]
[341901635,1731277841613,-1394.75,0.00024657,2]
[341901636,1731277841623,-500.0,0.00024657,2]
[341901637,1731277841632,-754.97,0.00024657,2]
[341901638,1731277841641,-500.0,0.00024657,2]
[341901639,1731277841650,-500.0,0.00024657,2]
[341901640,1731277841660,-500.0,0.00024657,2]
[341901641,1731277841670,-508.37,0.00024657,2]
[341901642,1731277841679,-500.0,0.00024657,2]
[341901643,1731277841689,-500.0,0.00024657,2]
[341901644,1731277841699,-500.0,0.00024657,2]
[341901645,1731277841709,-672.33,0.00024657,2]
[341901646,1731277841719,-789.72,0.00024657,2]
[341901647,1731277841728,-569.26,0.00024657,2]
[341901648,1731277841745,-500.0,0.00024657,2]
[341901649,1731277841758,-500.0,0.00024657,2]
[341901650,1731277841769,-500.0,0.00024657,2]
[341901651,1731277841779,-500.0,0.00024657,2]
[341901652,1731277841789,-500.0,0.00024657,2]
[341901653,1731277841800,-500.6,0.00024657,2]
[341901654,1731277841810,-500.0,0.00024657,2]
[341901655,1731277841820,-500.0,0.00024657,2]
[341901656,1731277841830,-723.97,0.00024657,2]
[341901657,1731277841841,-500.0,0.00024657,2]
[341901658,1731277841851,-3959.55,0.00024657,2]
[341901659,1731277841861,-1109.85,0.00024657,2]
[341901660,1731277841871,-500.0,0.00024657,2]
[341901661,1731277841881,-500.0,0.00024657,2]
[341901662,1731277841891,-500.0,0.00024657,2]
[341901663,1731277841901,-1707.4,0.00024657,2]
[341901664,1731277841911,-721.13,0.00024657,2]
[341901665,1731277841921,-500.0,0.00024657,2]
[341901666,1731277841931,-500.0,0.00024657,2]
[341901667,1731277841941,-150.0,0.00024658,2]
[341901668,1731277841950,-500.0,0.00024673,2]
[341901669,1731277841960,-500.0,0.00024673,2]
[341901670,1731277841970,-500.0,0.00024673,2]
[341901671,1731277841980,-8618.82901942,0.00024831,2]
[341901672,1731277841991,-1088.31300196,0.00024831,3]
[341901673,1731277842004,-177.33786493,0.0002493,2]
[341901674,1731277842014,-634.55909018,0.0002493,2]
[341901675,1731277842024,-234.35861432,0.0002493,2]
[341901676,1731277842033,-500.0,0.0002493,2]
[341901677,1731277842043,-500.0,0.0002493,2]
[341901678,1731277842053,-500.0,0.0002493,2]
[341901679,1731277842062,-500.0,0.0002493,2]
[341901680,1731277842072,-502.25156983,0.0002493,2]
[341901681,1731277842082,-390.39278209,0.0002493,2]
[341901682,1731277842092,-322.95633657,0.0002493,2]
[341901683,1731277842103,-501.05267497,0.0002493,2]
[341901684,1731277842113,-500.78016918,0.0002493,2]
[341901685,1731277842122,-199.14467195,0.0002493,2]
[341901686,1731277842132,-500.0,0.0002493,2]
[341901687,1731277842142,-251.47810617,0.0002493,2]
[341901688,1731277842152,-430.38997379,0.0002493,2]
[341901689,1731277842162,-500.0,0.00024931,2]
[341901690,1731277842172,-500.0,0.00024931,2]
[341901691,1731277842182,-500.0,0.00024931,2]
[341901692,1731277842192,-500.0,0.00024931,2]
[341901693,1731277842202,-530.26643491,0.00024931,2]
[341901694,1731277842212,-500.0,0.00024931,2]
[341901695,1731277842222,-500.0,0.00024931,2]
[341901696,1731277842232,-500.0,0.00024931,2]
[341901697,1731277842246,-500.0,0.00024931,2]
[341901698,1731277842256,-500.0,0.00024931,2]
[341901699,1731277842267,-500.0,0.00024931,2]
[341901700,1731277842276,-500.0,0.00024931,2]
[341901701,1731277842287,-500.0,0.00024931,2]
[341901702,1731277842297,-302.47544386,0.00024931,2]
[341901703,1731277842307,-200.0,0.00024931,2]
[341901704,1731277842317,-500.0,0.00024931,2]
[341901705,1731277842327,-500.0,0.00024931,2]
[341901706,1731277842336,-500.0,0.00024931,2]
[341901707,1731277842346,-500.0,0.00024931,2]
[341901708,1731277842355,-500.0,0.00024931,2]
[341901709,1731277842365,-500.0,0.00024931,2]
[341901710,1731277842374,-545.87,0.00024931,2]
[341901711,1731277842384,-433.8754429,0.00024931,2]
[341901712,1731277842394,-500.0,0.00024931,2]
[341901713,1731277842403,-500.0,0.00024931,2]
[341901714,1731277842414,-645.23874797,0.00024931,2]
[341901715,1731277842423,-500.0,0.00024931,2]
[341901716,1731277842433,-618.34,0.00024931,2]
[341901717,1731277842444,-500.0,0.00024931,2]
[341901718,1731277842454,-500.0,0.00024931,2]
[341901719,1731277842464,-244.98045656,0.00024931,2]
[341901757,1731277843452,-255.01954344,0.00024931,2]
[341901758,1731277843462,-500.0,0.00024931,2]
[341901760,1731277843472,-441.13017806,0.00024931,2]
[341901761,1731277843482,-500.0,0.00024931,2]
[341901762,1731277843491,-500.0,0.00024931,2]
[341901763,1731277843503,-500.0,0.00024931,2]
[341901765,1731277843512,-500.0,0.00024931,2]
[341901767,1731277843522,-500.0,0.00024931,2]
[341901769,1731277843532,-500.0,0.00024931,2]
[341901771,1731277843546,-500.0,0.00024931,2]
[341901774,1731277843556,-500.0,0.00024931,2]
[341901776,1731277843565,-500.0,0.00024931,2]
[341901778,1731277843574,-500.0,0.00024931,2]
[341901780,1731277843586,-500.0,0.00024931,2]
[341901782,1731277843596,-858.45,0.00024931,2]
[341901784,1731277843605,-500.0,0.00024931,2]
[341901786,1731277843614,-1126.48,0.00024931,2]
[341901787,1731277843625,-500.0,0.00024931,2]
[341901788,1731277843635,-651.26,0.00024931,2]
[341901789,1731277843644,-541.67372049,0.00024931,2]
[341901790,1731277843654,-500.0,0.00024931,2]
[341901791,1731277843663,-500.0,0.00024931,2]
[341901792,1731277843672,-500.0,0.00024931,2]
[341901793,1731277843682,-500.0,0.00024931,2]
[341901794,1731277843691,-500.0,0.00024931,2]
[341901795,1731277843700,-500.0,0.00024931,2]
[341901796,1731277843710,-500.0,0.00024931,2]
[341901797,1731277843720,-500.0,0.00024931,2]
[341901798,1731277843729,-500.0,0.00024931,2]
[341901799,1731277843740,-500.0,0.00024931,2]
[341901800,1731277843752,-500.0,0.00024931,2]
[341901801,1731277843762,-500.0,0.00024931,2]
[341901802,1731277843771,-500.0,0.00024931,2]
[341901803,1731277843781,-229.86077855,0.00024931,2]
[341901804,1731277843791,-500.0,0.00024931,2]
[341901805,1731277843800,-500.0,0.00024931,2]
[341901806,1731277843810,-500.0,0.00024931,2]
[341901807,1731277843820,-500.0,0.00024931,2]
[341901808,1731277843830,-500.0,0.00024931,2]
[341901809,1731277843840,-500.0,0.00024931,2]
[341901810,1731277843849,-250.0,0.00024931,2]
[341901811,1731277843860,-500.0,0.00024931,2]
[341901812,1731277843870,-500.0,0.00024931,2]
[341901813,1731277843880,-500.0,0.00024931,2]
[341901814,1731277843890,-500.0,0.00024931,2]
[341901815,1731277843899,-500.0,0.00024931,2]
[341901816,1731277843909,-743.34,0.00024931,2]
[341901817,1731277843919,-500.0,0.00024931,2]
[341901818,1731277843929,-500.0,0.00024931,2]
[341901819,1731277843940,-500.0,0.00024931,2]
[341901820,1731277843950,-2336.0,0.00024931,2]
[341901821,1731277843960,-500.0,0.00024931,2]
[341901822,1731277843970,-500.0,0.00024931,2]
[341901823,1731277843979,-500.0,0.00024931,2]
[341901824,1731277843988,-500.0,0.00024931,2]
[341901825,1731277844000,-613.75,0.00024931,2]
[341901826,1731277844009,-500.0,0.00024931,2]
[341901827,1731277844018,-500.0,0.00024931,2]
[341901828,1731277844028,-500.0,0.00024931,2]
[341901829,1731277844037,-500.0,0.00024931,2]
[341901830,1731277844046,-500.0,0.00024931,2]
[341901831,1731277844055,-500.0,0.00024931,2]
[341901832,1731277844065,-500.0,0.00024931,2]
[341901833,1731277844074,-500.0,0.00024931,2]
[341901834,1731277844083,-500.0,0.00024931,2]
[341901835,1731277844093,-500.0,0.00024931,2]
[341901836,1731277844102,-500.0,0.00024931,2]
[341901837,1731277844111,-500.0,0.00024931,2]
[341901838,1731277844121,-500.0,0.00024931,2]
[341901839,1731277844131,-500.0,0.00024931,2]
[341901840,1731277844140,-500.0,0.00024931,2]
[341901841,1731277844150,-500.0,0.00024931,2]
[341901842,1731277844159,-500.0,0.00024931,2]
[341901843,1731277844168,-500.0,0.00024931,2]
[341901844,1731277844177,-500.0,0.00024931,2]
[341901845,1731277844186,-500.0,0.00024931,2]
[341901846,1731277844195,-500.0,0.00024931,2]
[341901847,1731277844205,-500.0,0.00024931,2]
[341901848,1731277844214,-500.0,0.00024931,2]
[341901849,1731277844223,-847.96,0.00024931,2]
[341901850,1731277844232,-2168.63,0.00024931,2]
[341901851,1731277844245,-500.0,0.00024931,2]
[341901852,1731277844254,-500.0,0.00024931,2]
[341901853,1731277844264,-693.27,0.00024931,2]
[341901854,1731277844273,-279.70433106,0.00024931,2]
[341901855,1731277844286,-220.29566894,0.00024931,2]
[341901856,1731277844296,-238.9461547,0.00024931,2]
[341901857,1731277844308,-261.0538453,0.00024931,2]
[341901858,1731277844317,-500.0,0.00024931,2]
[341901859,1731277844327,-835.33,0.00024931,2]
[341901860,1731277844337,-500.0,0.00024931,2]
[341901861,1731277844346,-332.48134933,0.00024931,2]
[341901862,1731277844359,-167.51865067,0.00024931,2]
[341901863,1731277844369,-1044.41,0.00024931,2]
[341901864,1731277844379,-1228.02,0.00024931,2]
[341901865,1731277844390,-721.58,0.00024931,2]
[341901866,1731277844399,-500.0,0.00024931,2]
[341901867,1731277844409,-1199.84,0.00024931,2]
[341901868,1731277844419,-500.0,0.00024931,2]
[341901869,1731277844428,-500.0,0.00024931,2]
[341901870,1731277844438,-5161.35850646,0.00024931,2]
[341901871,1731277844450,-3465.71149354,0.00024931,2]
[341901872,1731277844459,-500.0,0.00024931,2]
[341901873,1731277844469,-500.0,0.00024931,2]
[341901874,1731277844478,-1000.0,0.00024931,2]
[341901875,1731277844487,-15538.69237113,0.00024931,2]
[341901974,1731277846511,-500.0,0.00024657,2]
[341901976,1731277846523,-4993.21762887,0.00024931,2]
[341901979,1731277846533,-500.0,0.00024931,2]
[341901981,1731277846543,-2129.51,0.00024931,2]
[341901983,1731277846556,-520.09,0.00024931,2]
[341901984,1731277846566,-500.0,0.00024931,2]
[341901987,1731277846575,-500.0,0.00024931,2]
[341901989,1731277846585,-500.0,0.00024931,2]
[341901990,1731277846594,-1768.5,0.00024931,2]
[341901993,1731277846604,-500.0,0.00024931,2]
[341901994,1731277846614,-500.0,0.00024931,2]
[341901997,1731277846624,-727.9,0.00024931,2]
[341901998,1731277846634,-500.0,0.00024931,2]
[341902000,1731277846644,-500.0,0.00024931,2]
[341902002,1731277846654,-4491.08,0.00024931,2]
[341902004,1731277846664,-500.0,0.00024931,2]
[341902006,1731277846674,-500.0,0.00024931,2]
[341902008,1731277846684,-500.0,0.00024931,2]
[341902010,1731277846694,-3349.39,0.00024931,2]
[341902012,1731277846703,-1672.61,0.00024931,2]
[341902014,1731277846713,-500.0,0.00024931,2]
[341902016,1731277846722,-500.0,0.00024931,2]
[341902018,1731277846732,-623.65,0.00024931,2]
[341902020,1731277846743,-500.0,0.00024931,2]
[341902022,1731277846756,-500.0,0.00024931,2]
[341902024,1731277846766,-500.0,0.00024931,2]
[341902026,1731277846775,-1236.46,0.00024931,2]
[341902028,1731277846785,-500.0,0.00024931,2]
[341902030,1731277846795,-500.0,0.00024931,2]
[341902032,1731277846805,-500.0,0.00024931,2]
[341902034,1731277846815,-500.0,0.00024931,2]
[341902035,1731277846825,-500.0,0.00024931,2]
[341902037,1731277846836,-1420.63,0.00024931,2]
[341902039,1731277846845,-500.0,0.00024931,2]
[341902041,1731277846855,-531.3,0.00024931,2]
[341902043,1731277846864,-1345.79,0.00024931,2]
[341902044,1731277846873,-1303.58,0.00024931,2]
[341902046,1731277846882,-500.0,0.00024931,2]
[341902048,1731277846893,-1603.27,0.00024931,2]
[341902050,1731277846902,-500.0,0.00024931,2]
[341902051,1731277846911,-1394.75,0.00024931,2]
[341902052,1731277846921,-500.0,0.00024931,2]
[341902053,1731277846930,-754.97,0.00024931,2]
[341902054,1731277846941,-500.0,0.00024931,2]
[341902056,1731277846951,-500.0,0.00024931,2]
[341902057,1731277846963,-500.0,0.00024931,2]
[341902060,1731277846974,-508.37,0.00024931,2]
[341902062,1731277846984,-500.0,0.00024931,2]
[341902063,1731277846994,-500.0,0.00024931,2]
[341902064,1731277847005,-500.0,0.00024931,2]
[341902066,1731277847015,-672.33,0.00024931,2]
[341902068,1731277847025,-789.72,0.00024931,2]
[341902070,1731277847035,-500.0,0.00024931,2]
[341902072,1731277847045,-500.0,0.00024931,2]
[341902074,1731277847055,-500.0,0.00024931,2]
[341902076,1731277847065,-500.0,0.00024931,2]
[341902078,1731277847075,-500.0,0.00024931,2]
[341902080,1731277847085,-500.6,0.00024931,2]
[341902082,1731277847095,-500.0,0.00024931,2]
[341902084,1731277847105,-216.1196238,0.00024931,2]
[341902086,1731277847114,-723.97,0.00024931,2]
[341902088,1731277847124,-3959.55,0.00024931,2]
[341902090,1731277847133,-1109.85,0.00024931,2]
[341902092,1731277847143,-500.0,0.00024931,2]
[341902094,1731277847152,-500.0,0.00024931,2]
[341902096,1731277847162,-1707.4,0.00024931,2]
[341902098,1731277847172,-721.13,0.00024931,2]
[341902100,1731277847183,-500.0,0.00024931,2]
[341902102,1731277847193,-500.0,0.00024931,2]
[341902104,1731277847203,-616.84746137,0.00024931,2]
[341902106,1731277847213,-500.0,0.00024973,2]
[341902108,1731277847222,-500.0,0.00024973,2]
[341902110,1731277847232,-500.0,0.00024973,2]
[341902112,1731277847241,-500.0,0.00024973,2]
[341902114,1731277847253,-500.0,0.00024973,2]
[341902116,1731277847263,-500.0,0.00024973,2]
[341902118,1731277847272,-500.0,0.00024973,2]
[341902120,1731277847281,-500.0,0.00024973,2]
[341902141,1731277847459,-500.0,0.00024973,2]
[341902143,1731277847468,-22424.14868657,0.00025,2]
[341902145,1731277847478,-27538.44575784,0.0002509,2]
[341902147,1731277847486,-501.21651174,0.00025205,2]
[341902149,1731277847495,-613.53931776,0.00025205,2]
[341902150,1731277847506,-500.0,0.00025205,2]
[341902152,1731277847516,-500.0,0.00025205,2]
[341902155,1731277847525,-500.0,0.00025205,2]
[341902156,1731277847535,-500.0,0.00025205,2]
[341902158,1731277847548,-500.0,0.00025205,2]
[341902161,1731277847558,-500.0,0.00025205,2]
[341902163,1731277847568,-500.0,0.00025205,2]
[341902165,1731277847578,-200.0,0.00025205,2]
[341902167,1731277847590,-500.0,0.00025205,2]
[341902169,1731277847600,-500.0,0.00025205,2]
[341902171,1731277847608,-500.0,0.00025205,2]
[341902172,1731277847617,-500.0,0.00025205,2]
[341902174,1731277847626,-500.0,0.00025205,2]
[341902176,1731277847635,-500.0,0.00025205,2]
[341902178,1731277847644,-545.87,0.00025205,2]
[341902180,1731277847653,-500.0,0.00025205,2]
[341902182,1731277847663,-500.0,0.00025205,2]
[341902184,1731277847672,-166.81283677,0.00025205,2]
[341902187,1731277847683,-500.0,0.00025205,2]
[341902189,1731277847692,-500.0,0.00025205,2]
[341902190,1731277847703,-500.0,0.00025205,2]
[341902193,1731277847713,-500.0,0.00025205,2]
[341902195,1731277847722,-500.0,0.00025205,2]
[341902196,1731277847732,-500.0,0.00025205,2]
[341902199,1731277847742,-500.0,0.00025205,2]
[341902200,1731277847752,-500.0,0.00025205,2]
[341902202,1731277847762,-500.0,0.00025205,2]
[341902205,1731277847771,-384.27403328,0.00025205,2]
[341902207,1731277847781,-500.0,0.00025205,2]
[341902208,1731277847790,-500.0,0.00025205,2]
[341902211,1731277847799,-500.0,0.00025205,2]
[341902212,1731277847809,-858.45,0.00025205,2]
[341902215,1731277847818,-500.0,0.00025205,2]
[341902216,1731277847827,-1126.48,0.00025205,2]
[341902218,1731277847837,-500.0,0.00025205,2]
[341902220,1731277847846,-651.26,0.00025205,2]
[341902222,1731277847855,-500.0,0.00025205,2]
[341902225,1731277847865,-500.0,0.00025205,2]
[341902227,1731277847874,-500.0,0.00025205,2]
[341902229,1731277847882,-500.0,0.00025205,2]
[341902231,1731277847892,-500.0,0.00025205,2]
[341902233,1731277847901,-475.3980156,0.00025205,2]
[341902235,1731277847910,-500.0,0.00025205,2]
[341902237,1731277847919,-500.0,0.00025205,2]
[341902239,1731277847928,-500.0,0.00025205,2]
[341902241,1731277847937,-500.0,0.00025205,2]
[341902243,1731277847946,-500.0,0.00025205,2]
[341902245,1731277847955,-500.0,0.00025205,2]
[341902247,1731277847964,-500.0,0.00025205,2]
[341902249,1731277847973,-500.0,0.00025205,2]
[341902251,1731277847982,-500.0,0.00025205,2]
[341902253,1731277847992,-500.0,0.00025205,2]
[341902255,1731277848003,-500.0,0.00025205,2]
[341902257,1731277848012,-500.0,0.00025205,2]
[341902259,1731277848020,-500.0,0.00025205,2]
[341902261,1731277848029,-500.0,0.00025205,2]
[341902263,1731277848039,-500.0,0.00025205,2]
[341902265,1731277848047,-266.91835159,0.00025205,2]
[341902267,1731277848056,-500.0,0.00025205,2]
[341902269,1731277848066,-504.29,0.00025205,2]
[341902271,1731277848075,-743.34,0.00025205,2]
[341902273,1731277848084,-500.0,0.00025205,2]
[341902275,1731277848093,-500.0,0.00025205,2]
[341902277,1731277848103,-500.0,0.00025205,2]
[341902279,1731277848112,-2336.0,0.00025205,2]
[341902281,1731277848122,-500.0,0.00025205,2]
[341902283,1731277848132,-500.0,0.00025205,2]
[341902285,1731277848141,-500.0,0.00025205,2]
[341902287,1731277848151,-500.0,0.00025205,2]
[341902289,1731277848161,-613.75,0.00025205,2]
[341902291,1731277848171,-500.0,0.00025205,2]
[341902293,1731277848180,-500.0,0.00025205,2]
[341902295,1731277848190,-500.0,0.00025205,2]
[341902297,1731277848199,-500.0,0.00025205,2]
[341902299,1731277848209,-500.0,0.00025205,2]
[341902301,1731277848218,-500.0,0.00025205,2]
[341902303,1731277848228,-500.0,0.00025205,2]
[341902305,1731277848238,-500.0,0.00025205,2]
[341902307,1731277848251,-500.0,0.00025205,2]
[341902308,1731277848261,-500.0,0.00025205,2]
[341902309,1731277848270,-500.0,0.00025205,2]
[341902310,1731277848280,-500.0,0.00025205,2]
[341902311,1731277848289,-500.0,0.00025205,2]
[341902312,1731277848300,-500.0,0.00025205,2]
[341902313,1731277848309,-500.0,0.00025205,2]
[341902314,1731277848319,-500.0,0.00025205,2]
[341902315,1731277848329,-500.0,0.00025205,2]
[341902316,1731277848338,-500.0,0.00025205,2]
[341902317,1731277848348,-500.0,0.00025205,2]
[341902318,1731277848358,-500.0,0.00025205,2]
[341902319,1731277848369,-175.95403283,0.00025205,2]
[341902320,1731277848379,-500.0,0.00025205,2]
[341902321,1731277848389,-403.93298344,0.00025205,2]
[341902322,1731277848399,-847.96,0.00025205,2]
[341902323,1731277848409,-2168.63,0.00025205,2]
[341902324,1731277848419,-500.0,0.00025205,2]
[341902325,1731277848429,-500.0,0.00025205,2]
[341902326,1731277848438,-693.27,0.00025205,2]
[341902327,1731277848447,-500.0,0.00025205,2]
[341902328,1731277848457,-500.0,0.00025205,2]
[341902329,1731277848466,-500.0,0.00025205,2]
[341902330,1731277848476,-835.33,0.00025205,2]
[341902331,1731277848485,-500.0,0.00025205,2]
[341902332,1731277848495,-500.0,0.00025205,2]
[341902334,1731277848510,-1044.41,0.00025205,2]
[341902336,1731277848520,-1228.02,0.00025205,2]
[341902338,1731277848528,-721.58,0.00025205,2]
[341902340,1731277848539,-500.0,0.00025205,2]
[341902342,1731277848550,-1199.84,0.00025205,2]
[341902344,1731277848559,-500.0,0.00025205,2]
[341902346,1731277848569,-500.0,0.00025205,2]
[341902348,1731277848578,-8627.07,0.00025205,2]
[341902350,1731277848589,-500.0,0.00025205,2]
[341902352,1731277848599,-500.0,0.00025205,2]
[341902354,1731277848608,-530.57,0.00025205,2]
[341902356,1731277848618,-20531.91,0.00025205,2]
[341902358,1731277848629,-500.0,0.00025205,2]
[341902361,1731277848638,-2129.51,0.00025205,2]
[341902363,1731277848648,-520.09,0.00025205,2]
[341902365,1731277848657,-500.0,0.00025205,2]
[341902366,1731277848666,-500.0,0.00025205,2]
[341902368,1731277848675,-500.0,0.00025205,2]
[341902370,1731277848685,-1768.5,0.00025205,2]
[341902372,1731277848695,-167.35634557,0.00025205,2]
[341902375,1731277848704,-500.0,0.00025205,2]
[341902376,1731277848714,-727.9,0.00025205,2]
[341902379,1731277848723,-500.0,0.00025205,2]
[341902380,1731277848733,-500.0,0.00025205,2]
[341902382,1731277848743,-4491.08,0.00025205,2]
[341902384,1731277848760,-500.0,0.00025205,2]
[341902386,1731277848770,-500.0,0.00025205,2]
[341902388,1731277848780,-500.0,0.00025205,2]
[341902390,1731277848790,-1672.61,0.00025205,2]
[341902392,1731277848800,-3349.39,0.00025205,2]
[341902394,1731277848810,-225.96144088,0.00025205,2]
[341902396,1731277848819,-293.4976419,0.00025205,2]
[341902398,1731277848828,-623.65,0.00025205,2]
[341902400,1731277848838,-500.0,0.00025205,2]
[341902402,1731277848848,-500.0,0.00025205,2]
[341902404,1731277848857,-500.0,0.00025205,2]
[341902406,1731277848867,-1236.46,0.00025205,2]
[341902408,1731277848877,-500.0,0.00025205,2]
[341902410,1731277848886,-500.0,0.00025205,2]
[341902412,1731277848896,-500.0,0.00025205,2]
[341902414,1731277848906,-500.0,0.00025205,2]
[341902416,1731277848915,-500.0,0.00025205,2]
[341902419,1731277848926,-1420.63,0.00025205,2]
[341902420,1731277848936,-500.0,0.00025205,2]
[341902422,1731277848946,-531.3,0.00025205,2]
[341902424,1731277848956,-1345.79,0.00025205,2]
[341902426,1731277848965,-1303.58,0.00025205,2]
[341902428,1731277848975,-500.0,0.00025205,2]
[341902431,1731277848984,-1603.27,0.00025205,2]
[341902432,1731277848993,-500.0,0.00025205,2]
[341902434,1731277849007,-1394.75,0.00025205,2]
[341902436,1731277849016,-500.0,0.00025205,2]
[341902439,1731277849026,-754.97,0.00025205,2]
[341902440,1731277849036,-500.0,0.00025205,2]
[341902442,1731277849046,-500.0,0.00025205,2]
[341902445,1731277849056,-500.0,0.00025205,2]
[341902447,1731277849065,-508.37,0.00025205,2]
[341902449,1731277849075,-500.0,0.00025205,2]
[341902451,1731277849085,-500.0,0.00025205,2]
[341902453,1731277849095,-500.0,0.00025205,2]
[341902455,1731277849105,-672.33,0.00025205,2]
[341902457,1731277849116,-789.72,0.00025205,2]
[341902459,1731277849126,-500.0,0.00025205,2]
[341902461,1731277849136,-500.0,0.00025205,2]
[341902463,1731277849145,-500.0,0.00025205,2]
[341902465,1731277849155,-500.0,0.00025205,2]
[341902467,1731277849165,-500.0,0.00025205,2]
[341902469,1731277849175,-500.6,0.00025205,2]
[341902471,1731277849185,-500.0,0.00025205,2]
[341902473,1731277849195,-723.97,0.00025205,2]
[341902475,1731277849205,-3959.55,0.00025205,2]
[341902477,1731277849215,-1109.85,0.00025205,2]
[341902479,1731277849224,-500.0,0.00025205,2]
[341902480,1731277849234,-500.0,0.00025205,2]
[341902482,1731277849243,-1707.4,0.00025205,2]
[341902484,1731277849257,-721.13,0.00025205,2]
[341902486,1731277849266,-500.0,0.00025205,2]
[341902488,1731277849276,-500.0,0.00025205,2]
[341902490,1731277849286,-465.56271224,0.00025248,2]
[341902492,1731277849295,-500.0,0.00025273,2]
[341902494,1731277849305,-157.632,0.0002535,30]
[341902496,1731277849314,-320.74188124,0.000254,2]
[341902498,1731277849323,-320.74188123,0.000254,2]
[341902500,1731277849332,-320.74188123,0.000254,2]
[341902502,1731277849342,-515.0,0.000254,2]
[341902504,1731277849351,-251.77323832,0.00025473,2]
[341902506,1731277849360,-511.18575639,0.00025473,2]
[341902508,1731277849371,-503.42235575,0.00025473,2]
[341902510,1731277849381,-150.01,0.00025478,2]
[341902512,1731277849391,-7336.74857376,0.00025478,2]
[341902514,1731277849401,-529.69009378,0.00025479,2]
[341902516,1731277849410,-500.0,0.00025479,2]
[341902518,1731277849419,-500.0,0.00025479,2]
[341902520,1731277849430,-500.0,0.00025479,2]
[341902522,1731277849439,-500.0,0.00025479,2]
[341902524,1731277849450,-500.0,0.00025479,2]
[341902526,1731277849460,-500.0,0.00025479,2]
[341902528,1731277849470,-200.0,0.00025479,2]
[341902531,1731277849481,-500.0,0.00025479,2]
[341902533,1731277849495,-500.0,0.00025479,2]
[341902536,1731277849511,-500.0,0.00025479,2]
[341902538,1731277849523,-500.0,0.00025479,2]
[341902540,1731277849534,-500.0,0.00025479,2]
[341902542,1731277849547,-500.0,0.00025479,2]
[341902544,1731277849559,-545.87,0.00025479,2]
[341902547,1731277849570,-500.0,0.00025479,2]
[341902549,1731277849583,-500.0,0.00025479,2]
[341902551,1731277849595,-500.0,0.00025479,2]
[341902553,1731277849606,-500.0,0.00025479,2]
[341902556,1731277849618,-500.0,0.00025479,2]
[341902558,1731277849631,-500.0,0.00025479,2]